fUSD/lending_fUSD_20260112
["ID","MTS","AMOUNT","RATE_DAILY","PERIOD"]
[401441423,1768221038929,-151.0,0.00012402,2]
[401441424,1768221038939,-151.0,0.00012402,2]
[401441425,1768221038949,-151.0,0.00012402,2]
[401441426,1768221038959,-151.0,0.00012402,2]
[401441427,1768221038969,-151.0,0.00012402,2]
[401441428,1768221038979,-151.0,0.00012402,2]
[401441429,1768221038993,-151.0,0.00012402,2]
[401441430,1768221039003,-190.25340897,0.00012402,2]
[401441431,1768221039013,-200.0,0.00012402,2]
[401441432,1768221039024,-500.0,0.00012402,2]
[401441433,1768221039034,-200.0,0.00012516,2]
[401441434,1768221039045,-1852.42,0.00012516,2]
[401441435,1768221039055,-6351.09,0.00012516,2]
[401441436,1768221039065,-1868.19608192,0.00012528,2]
[401441437,1768221039075,-243176.71725504,0.00012537,2]
[401441438,1768221039086,-234.69378485,0.00012563,2]
[401441439,1768221039097,-500.0,0.00012676,2]
[401441440,1768221039107,-285.0,0.00012779,2]
[401441441,1768221039117,-255.0,0.00012843,2]
[401441442,1768221039126,-1680.0,0.00012926,2]
[401441443,1768221039136,-420.0,0.00012926,2]
[401441444,1768221039146,-341.0,0.00012926,2]
[401441445,1768221039156,-12187.90846754,0.00012936,2]
[401441446,1768221039166,-1680.0,0.00012949,2]
[401441447,1768221039175,-300.0,0.00012949,2]
[401441448,1768221039185,-500.0,0.0001295,2]
[401441449,1768221039195,-200.0,0.0001295,2]
[401441450,1768221039204,-200.0,0.0001295,2]
[401441451,1768221039214,-500.0,0.0001295,2]
[401441452,1768221039225,-250.0,0.0001295,2]
[401441453,1768221039235,-174.46484467,0.0001295,2]
[401441454,1768221039245,-195.0,0.0001295,2]
[401441455,1768221039254,-195.0,0.00013006,2]
[401441456,1768221039264,-300.0,0.00013006,2]
[401441457,1768221039273,-195.0,0.0001306,2]
[401441458,1768221039283,-930.51015167,0.0001311,2]
[401441459,1768221039294,-500.0,0.00013224,2]
[401441460,1768221039303,-335.50393638,0.00013278,2]
[401441461,1768221039313,-1082.37,0.00013337,2]
[401441462,1768221039323,-161.39,0.00013428,2]
[401441463,1768221039332,-234.69378485,0.00013452,2]
[401441464,1768221039347,-500.0,0.00013498,2]
[401441465,1768221039357,-12187.90846754,0.00013557,2]
[401441466,1768221039367,-500.0,0.00013698,2]
[401441467,1768221039377,-500.0,0.00013698,2]
[401441468,1768221039387,-500.0,0.00013698,2]
[401441469,1768221039397,-500.0,0.00013698,2]
[401441470,1768221039407,-500.0,0.00013698,2]
[401441471,1768221039416,-500.0,0.00013698,2]
[401441472,1768221039426,-500.0,0.00013698,2]
[401441473,1768221039436,-500.0,0.00013698,2]
[401441474,1768221039446,-500.0,0.00013698,2]
[401441475,1768221039456,-500.0,0.00013698,2]
[401441476,1768221039465,-500.0,0.00013698,2]
[401441477,1768221039475,-330.30276578,0.00013698,2]
[401441478,1768221039484,-500.0,0.00013698,2]
[401441479,1768221039494,-602.58106697,0.00013698,2]
[401441480,1768221039503,-500.0,0.00013698,2]
[401441481,1768221039513,-500.0,0.00013698,2]
[401441482,1768221039523,-500.0,0.00013698,2]
[401441483,1768221039532,-500.0,0.00013698,2]
[401441484,1768221039542,-500.0,0.00013698,2]
[401441485,1768221039551,-500.0,0.00013698,2]
[401441486,1768221039561,-283.97422637,0.00013698,2]
[401441487,1768221039570,-500.0,0.00013698,2]
[401441488,1768221039580,-500.0,0.00013698,2]
[401441489,1768221039590,-500.0,0.00013698,2]
[401441490,1768221039599,-500.0,0.00013698,2]
[401441491,1768221039609,-500.0,0.00013698,2]
[401441492,1768221039619,-500.0,0.00013698,2]
[401441493,1768221039629,-500.0,0.00013698,2]
[401441494,1768221039639,-500.0,0.00013698,2]
[401441495,1768221039651,-500.0,0.00013698,2]
[401441496,1768221039661,-500.0,0.00013698,2]
[401441497,1768221039670,-500.0,0.00013698,2]
[401441498,1768221039680,-500.0,0.00013698,2]
[401441499,1768221039690,-500.0,0.00013698,2]
[401441500,1768221039704,-500.0,0.00013698,2]
[401441501,1768221039716,-404.20947906,0.00013698,2]
[401441502,1768221039725,-500.0,0.00013698,2]
[401441503,1768221039735,-500.0,0.00013698,2]
[401441505,1768221039744,-582.07232141,0.00013698,2]
[401441506,1768221039754,-507.848456,0.00013698,2]
[401441507,1768221039763,-502.8163204,0.00013698,2]
[401441508,1768221039773,-948.9,0.00013698,2]
[401441509,1768221039782,-500.0,0.00013698,2]
[401441510,1768221039792,-500.0,0.00013698,2]
[401441511,1768221039802,-500.0,0.00013698,2]
[401441512,1768221039812,-500.0,0.00013698,2]
[401441513,1768221039821,-500.0,0.00013698,2]
[401441514,1768221039831,-500.0,0.00013698,2]
[401441515,1768221039840,-500.0,0.00013698,2]
[401441516,1768221039850,-500.0,0.00013698,2]
[401441517,1768221039859,-500.0,0.00013698,2]
[401441518,1768221039869,-546.60063579,0.00013698,2]
[401441519,1768221039878,-500.0,0.00013698,2]
[401441520,1768221039888,-500.0,0.00013698,2]
[401441521,1768221039897,-500.0,0.00013698,2]
[401441523,1768221039908,-500.0,0.00013698,2]
[401441524,1768221039917,-500.0,0.00013698,2]
[401441525,1768221039927,-500.0,0.00013698,2]
[401441526,1768221039936,-500.0,0.00013698,2]
[401441527,1768221039947,-500.0,0.00013698,2]
[401441528,1768221039956,-507.73004524,0.00013698,2]
[401441529,1768221039966,-500.0,0.00013698,2]
[401441531,1768221039976,-500.0,0.00013698,2]
[401441532,1768221039986,-500.0,0.00013698,2]
[401441533,1768221039996,-500.0,0.00013698,2]
[401441534,1768221040006,-506.26751507,0.00013698,2]
[401441535,1768221040015,-500.0,0.00013698,2]
[401441536,1768221040025,-500.0,0.00013698,2]
[401441537,1768221040035,-500.0,0.00013698,2]
[401441538,1768221040045,-500.0,0.00013698,2]
[401441539,1768221040055,-341.67884985,0.00013698,2]
[401441540,1768221040069,-500.0,0.00013698,2]
[401441541,1768221040078,-500.0,0.00013698,2]
[401441542,1768221040088,-500.0,0.00013698,2]
[401441543,1768221040098,-500.0,0.00013698,2]
[401441544,1768221040108,-500.0,0.00013698,2]
[401441545,1768221040119,-500.0,0.00013698,2]
[401441546,1768221040128,-500.0,0.00013698,2]
[401441547,1768221040138,-500.0,0.00013698,2]
[401441548,1768221040149,-709.68,0.00013699,2]
[401441549,1768221040159,-1182.28,0.00013699,2]
[401441550,1768221040169,-200.0,0.00013699,2]
[401441551,1768221040179,-226.90542716,0.00013699,2]
[401441552,1768221040190,-500.0,0.00013772,2]
[401441553,1768221040200,-948.9,0.00013972,2]
[401441554,1768221040210,-433.0,0.00014009,2]
[401441555,1768221040220,-500.0,0.00014045,2]
[401441556,1768221040230,-500.0,0.00014051,2]
[401441557,1768221040239,-12187.90846754,0.00014177,2]
[401441558,1768221040249,-2351.0,0.00014193,2]
[401441559,1768221040259,-587.0,0.00014193,2]
[401441560,1768221040270,-2351.0,0.00014244,2]
[401441561,1768221040280,-948.9,0.00014246,2]
[401441562,1768221040290,-500.0,0.00014281,2]
[401441563,1768221040299,-500.0,0.00014281,2]
[401441564,1768221040309,-180.40064564,0.00014313,2]
[401441565,1768221040319,-500.0,0.00014313,2]
[401441566,1768221040328,-234.69378485,0.00014342,2]
[401441567,1768221040338,-1182.28,0.00014384,2]
[401441568,1768221040348,-151.0,0.00014465,2]
[401441569,1768221040358,-151.0,0.00014482,2]
[401441570,1768221040368,-151.0,0.00014504,2]
[401441571,1768221040378,-948.9,0.0001452,2]
[401441572,1768221040388,-151.0,0.0001452,2]
[401441573,1768221040398,-151.0,0.0001452,2]
[401441574,1768221040408,-151.0,0.00014523,2]
[401441575,1768221040418,-151.0,0.00014523,2]
[401441576,1768221040431,-151.0,0.00014524,2]
[401441577,1768221040441,-249.58,0.0001456,2]
[401441579,1768221040451,-948.9,0.00014794,2]
[401441580,1768221040460,-12187.90846754,0.00014798,2]
[401441582,1768221040470,-1000.0,0.00014953,2]
[401441584,1768221040480,-948.9,0.00015068,2]
[401441585,1768221040489,-1182.28,0.00015068,2]
[401441586,1768221040499,-209.63270184,0.00015141,2]
[401441587,1768221040509,-234.69378485,0.00015231,2]
[401441588,1768221040519,-23780.12430884,0.00015291,2]
[401441589,1768221040528,-662.0,0.00015292,2]
[401441590,1768221040538,-948.9,0.00015342,2]
[401441591,1768221040548,-12187.90846754,0.00015418,2]
[401441592,1768221040557,-250.0,0.00015556,2]
[401441593,1768221040567,-1611.0,0.00015585,2]
[401441594,1768221040577,-823.0,0.00015585,2]
[401441595,1768221040587,-948.94236321,0.00015616,2]
[401441596,1768221040597,-3292.0,0.00015669,2]
[401441597,1768221040606,-1182.28,0.00015753,2]
[401441598,1768221040620,-500.0,0.00015852,2]
[401441599,1768221040630,-12287.36593645,0.000159,2]
[401441600,1768221040640,-342.06341135,0.00015939,2]
[401441601,1768221040652,-150.0,0.00015939,2]
[401441602,1768221040662,-995.93116772,0.00015939,2]
[401441603,1768221040672,-1868.19608192,0.0001599,2]
[401441604,1768221040683,-1423297.26089149,0.00016,4]
[401441605,1768221041777,-2280852.59089055,0.00016,4]
[401441606,1768221041787,-12187.90846754,0.00016039,2]
[401441607,1768221041797,-5000.00617457,0.000162,5]
[401441608,1768221041806,-995.93116772,0.00016331,2]
[401441609,1768221041816,-500.0,0.00016438,2]
[401441610,1768221041825,-500.0,0.00016438,2]
[401441611,1768221041835,-500.0,0.00016438,2]
[401441612,1768221041844,-500.0,0.00016438,2]
[401441613,1768221041854,-500.0,0.00016438,2]
[401441614,1768221041864,-500.0,0.00016438,2]
[401441615,1768221041874,-500.0,0.00016438,2]
[401441616,1768221041883,-1182.28,0.00016438,2]
[401441617,1768221041892,-151.0,0.00016438,2]
[401441618,1768221041901,-12187.90846754,0.00016659,2]
[401441619,1768221041911,-995.93116772,0.00016723,2]
[401441620,1768221041921,-18245.51390651,0.000168,2]
[401441621,1768221041930,-1000.0,0.00016822,2]
[401441622,1768221041940,-342.06341134,0.0001692,2]
[401441623,1768221041950,-500.0,0.00016967,2]
[401441624,1768221041959,-500.0,0.00016967,2]
[401441625,1768221041968,-54632.37935038,0.00016968,2]
[401441626,1768221041978,-88870.90979828,0.00016968,2]
[401441627,1768221041987,-125512.24857872,0.00016968,2]
[401441628,1768221041997,-162410.2029,0.00016968,2]
[401441629,1768221042006,-250.0,0.00017,2]
[401441630,1768221042015,-1091.0,0.00017037,2]
[401441631,1768221042025,-500.0,0.00017073,2]
[401441632,1768221042034,-500.0,0.00017073,2]
[401441633,1768221042044,-169.86648744,0.00017073,2]
[401441634,1768221042053,-161.98929508,0.00017073,2]
[401441635,1768221042063,-500.0,0.00017073,2]
[401441636,1768221042072,-167.63634062,0.00017073,2]
[401441637,1768221042081,-500.0,0.00017073,2]
[401441638,1768221042091,-500.0,0.00017073,2]
[401441639,1768221042100,-164.2110081,0.00017073,2]
[401441640,1768221042109,-500.0,0.00017073,2]
[401441641,1768221042119,-173.30819609,0.00017073,2]
[401441642,1768221042128,-175.33645003,0.00017073,2]
[401441643,1768221042139,-537.39654828,0.00017073,2]
[401441644,1768221042153,-500.0,0.00017073,2]
[401441645,1768221042163,-500.0,0.00017073,2]
[401441646,1768221042172,-224.8179227,0.00017073,2]
[401441647,1768221042182,-500.0,0.00017073,2]
[401441648,1768221042192,-500.11872932,0.00017073,2]
[401441649,1768221042201,-500.0,0.00017073,2]
[401441650,1768221042211,-500.0,0.00017073,2]
[401441651,1768221042221,-500.0,0.00017073,2]
[401441652,1768221042231,-500.0,0.00017073,2]
[401441653,1768221042240,-500.0,0.00017073,2]
[401441654,1768221042249,-500.0,0.00017073,2]
[401441655,1768221042259,-500.0,0.00017073,2]
[401441656,1768221042269,-500.0,0.00017073,2]
[401441657,1768221042279,-500.0,0.00017073,2]
[401441658,1768221042289,-500.0,0.00017073,2]
[401441659,1768221042299,-500.0,0.00017073,2]
[401441660,1768221042308,-500.0,0.00017073,2]
[401441661,1768221042317,-500.0,0.00017073,2]
[401441662,1768221042327,-500.0,0.00017073,2]
[401441663,1768221042337,-237.55266578,0.00017073,2]
[401441664,1768221042346,-500.65590003,0.00017073,2]
[401441665,1768221042356,-500.0,0.00017073,2]
[401441666,1768221042366,-500.0,0.00017073,2]
[401441667,1768221042375,-500.57959935,0.00017073,2]
[401441668,1768221042385,-500.0,0.00017073,2]
[401441669,1768221042394,-500.0,0.00017073,2]
[401441670,1768221042404,-307.68,0.00017076,2]
[401441671,1768221042414,-1152.0,0.00017113,2]
[401441672,1768221042424,-995.93116772,0.00017116,2]
[401441673,1768221042434,-4609.0,0.00017236,2]
[401441674,1768221042443,-368.48256204,0.00017247,2]
[401441675,1768221042453,-2457.0,0.00017249,2]
[401441676,1768221042463,-2457.0,0.00017266,2]
[401441677,1768221042474,-12187.90846754,0.0001728,2]
[401441678,1768221042483,-2457.0,0.00017332,2]
[401441679,1768221042492,-2457.0,0.00017444,2]
[401441680,1768221042502,-158.73335703,0.00017483,2]
[401441681,1768221042512,-2457.0,0.00017487,2]
[401441682,1768221042521,-500.0,0.00017498,2]
[401441683,1768221042531,-500.0,0.00017507,2]
[401441684,1768221042541,-995.93116772,0.00017508,2]
[401441685,1768221042551,-2457.0,0.00017515,2]
[401441686,1768221042561,-2457.0,0.0001761,2]
[401441687,1768221042571,-2457.0,0.00017618,2]
[401441688,1768221042580,-500.0,0.00017621,2]
[401441689,1768221042590,-166.96227274,0.00017621,2]
[401441690,1768221042600,-1000.0,0.00017621,2]
[401441691,1768221042610,-1000.0,0.00017621,2]
[401441692,1768221042622,-1057.0137817,0.00017621,2]
[401441693,1768221042632,-500.64635657,0.00017621,2]
[401441694,1768221042643,-1000.0,0.00017621,2]
[401441695,1768221042653,-1000.0,0.00017621,2]
[401441696,1768221042663,-540.4577012,0.00017621,2]
[401441697,1768221042672,-1000.0,0.00017621,2]
[401441698,1768221042683,-500.0,0.00017621,2]
[401441699,1768221042693,-500.83788468,0.00017621,2]
[401441700,1768221042703,-1000.0,0.00017621,2]
[401441701,1768221042718,-1000.0,0.00017621,2]
[401441702,1768221042729,-1000.51842778,0.00017621,2]
[401441703,1768221042739,-1000.0,0.00017621,2]
[401441705,1768221042749,-501.67211681,0.00017621,2]
[401441707,1768221042758,-1000.0,0.00017621,2]
[401441710,1768221042767,-1000.0,0.00017621,2]
[401441713,1768221042777,-1000.0,0.00017621,2]
[401441716,1768221042786,-993.49118932,0.00017621,2]
[401441718,1768221042795,-2962.0,0.00017639,2]
[401441720,1768221042805,-500.0,0.0001772,2]
[401441722,1768221042814,-500.0,0.0001772,2]
[401441724,1768221042823,-500.0,0.0001772,2]
[401441726,1768221042832,-500.0,0.0001772,2]
[401441728,1768221042842,-356.46360209,0.0001772,2]
[401441729,1768221042850,-500.0,0.0001772,2]
[401441730,1768221042860,-339.02482631,0.0001772,2]
[401441731,1768221042871,-500.0,0.0001772,2]
[401441732,1768221042880,-1000.0,0.00017729,2]
[401441733,1768221042890,-168.0,0.00017733,2]
[401441734,1768221042899,-168.0,0.00017733,2]
[401441735,1768221042908,-168.0,0.00017735,2]
[401441736,1768221042918,-1000.0,0.0001774,2]
[401441737,1768221042927,-1000.0,0.00017755,2]
[401441738,1768221042937,-4458.74645977,0.0001776,2]
[401441739,1768221042946,-1000.0,0.00017774,2]
[401441740,1768221042956,-1000.0,0.00017777,2]
[401441741,1768221042965,-168.0,0.000178,2]
[401441742,1768221042974,-1000.0,0.00017802,2]
[401441743,1768221042983,-156.587,0.00017807,2]
[401441744,1768221042992,-1000.0,0.0001781,2]
[401441745,1768221043002,-1000.0,0.0001781,2]
[401441746,1768221043011,-168.18552807,0.00017812,2]
[401441747,1768221043020,-910.24842296,0.0001782,2]
[401441748,1768221043029,-83171.52894996,0.0001783,2]
[401441749,1768221043039,-150.0,0.00017844,2]
[401441750,1768221043049,-500.0,0.00017847,2]
[401441751,1768221043058,-222.97211581,0.00017847,2]
[401441752,1768221043067,-168.0,0.0001785,2]
[401441753,1768221043076,-664.55,0.00017852,2]
[401441754,1768221043086,-1000.0,0.00017853,2]
[401441755,1768221043095,-1000.0,0.00017881,2]
[401441756,1768221043104,-1000.0,0.00017884,2]
[401441757,1768221043115,-1054.4366,0.000179,2]
[401441758,1768221043124,-12187.90846754,0.000179,2]
[401441759,1768221043134,-342.06341134,0.000179,2]
[401441760,1768221043144,-995.93116772,0.000179,2]
[401441761,1768221043153,-1000.0,0.00017921,2]
[401441762,1768221043162,-168.0,0.00017943,2]
[401441763,1768221043171,-1868.19608192,0.00017946,2]
[401441764,1768221043181,-25000.0,0.00017947,3]
[401441765,1768221043190,-1000.0,0.0001795,2]
[401441766,1768221043199,-25000.0,0.00017956,3]
[401441767,1768221043208,-500.0,0.00017964,2]
[401441768,1768221043217,-1000.0,0.00017964,2]
[401441769,1768221043226,-25000.0,0.00017965,3]
[401441770,1768221043236,-500.0,0.00017972,2]
[401441771,1768221043245,-6077.0,0.00017973,2]
[401441772,1768221043254,-501.47661499,0.00017973,2]
[401441773,1768221043263,-500.0,0.00017973,2]
[401441774,1768221043273,-500.0,0.00017973,2]
[401441775,1768221043282,-500.0,0.00017973,2]
[401441776,1768221043291,-502.23302881,0.00017973,2]
[401441777,1768221043300,-501.12911319,0.00017973,2]
[401441778,1768221043310,-500.0,0.00017973,2]
[401441779,1768221043319,-249.33886025,0.00017973,2]
[401441780,1768221043329,-505.68975855,0.00017973,2]
[401441781,1768221043338,-500.55153068,0.00017973,2]
[401441782,1768221043348,-500.0,0.00017973,2]
[401441783,1768221043359,-273.6592917,0.00017973,2]
[401441784,1768221043368,-500.0,0.00017973,2]
[401441785,1768221043377,-500.0,0.00017973,2]
[401441786,1768221043387,-645.16964219,0.00017973,2]
[401441787,1768221043397,-500.0,0.00017973,2]
[401441789,1768221043406,-501.10571804,0.00017973,2]
[401441790,1768221043415,-501.38258594,0.00017973,2]
[401441791,1768221043424,-160.50727141,0.00017973,2]
[401441792,1768221043434,-515.69548792,0.00017973,2]
[401441793,1768221043444,-554.22609528,0.00017973,2]
[401441794,1768221043454,-500.0,0.00017973,2]
[401441795,1768221043463,-502.46613412,0.00017973,2]
[401441796,1768221043473,-599.69310789,0.00017973,2]
[401441798,1768221043482,-502.71154611,0.00017973,2]
[401441799,1768221043492,-162.85500377,0.00017973,2]
[401441800,1768221043502,-500.0,0.00017973,2]
[401441801,1768221043511,-644.05438872,0.00017973,2]
[401441802,1768221043520,-500.0,0.00017973,2]
[401441803,1768221043530,-500.0,0.00017973,2]
[401441804,1768221043539,-500.0,0.00017973,2]
[401441805,1768221043548,-500.0,0.00017973,2]
[401441806,1768221043558,-1000.0,0.00017973,2]
[401441807,1768221043567,-25000.0,0.00017974,3]
[401441808,1768221043577,-152.92662848,0.00017982,2]
[401441809,1768221043587,-500.0,0.00017982,2]
[401441810,1768221043596,-25000.0,0.00017982,3]
[401441811,1768221043606,-150.0,0.00017985,2]
[401441812,1768221043615,-456.07319796,0.0001799,2]
[401441813,1768221043624,-1856.57725944,0.0001799,2]
[401441814,1768221043635,-1000.0,0.0001799,2]
[401441815,1768221043648,-25000.0,0.00017991,3]
[401441816,1768221043657,-500.0,0.00017998,2]
[401441817,1768221043667,-162.25638013,0.00017999,2]
[401441818,1768221043677,-71599.8162808,0.00017999,2]
[401441819,1768221043687,-4124.8922698,0.00017999,2]
[401441820,1768221043696,-500.0,0.00017999,2]
[401441821,1768221043705,-500.0,0.00017999,2]
[401441822,1768221043716,-207.58974413,0.00017999,2]
[401441823,1768221043725,-500.0,0.00017999,2]
[401441824,1768221043734,-500.0,0.00017999,2]
[401441825,1768221043744,-508.50378479,0.00017999,2]
[401441826,1768221043754,-677.99669903,0.00017999,2]
[401441827,1768221043763,-98890.2137305,0.00017999,2]
[401441828,1768221043771,-300.0,0.00017999,2]
[401441829,1768221043780,-300.0,0.00017999,2]
[401441830,1768221043790,-500.0,0.00017999,2]
[401441831,1768221043799,-630.29424855,0.00017999,2]
[401441832,1768221043808,-509.50574001,0.00017999,2]
[401441833,1768221043817,-590.70903052,0.00017999,2]
[401441834,1768221043826,-300.0,0.00017999,2]
[401441835,1768221043835,-300.0,0.00017999,2]
[401441836,1768221043844,-666.0,0.00017999,2]
[401441837,1768221043853,-14302.37222132,0.00017999,2]
[401441838,1768221043863,-666.0,0.00017999,2]
[401441839,1768221043872,-500.0,0.00017999,2]
[401441840,1768221043881,-500.0,0.00017999,2]
[401441841,1768221043890,-500.0,0.00017999,2]
[401441842,1768221043899,-500.0,0.00017999,2]
[401441843,1768221043908,-500.0,0.00017999,2]
[401441844,1768221043917,-500.0,0.00017999,2]
[401441845,1768221043927,-500.0,0.00017999,2]
[401441846,1768221043936,-500.0,0.00017999,2]
[401441847,1768221043946,-500.0,0.00017999,2]
[401441848,1768221043956,-369.87509882,0.00017999,2]
[401441849,1768221043965,-2819168.3203041,0.00018,2]
[401441850,1768221043979,-2444.83323628,0.00018,2]
[401441851,1768221044407,-234.69378485,0.00016121,2]
[401441852,1768221044416,-1351.27821101,0.00018,2]
[401441853,1768221044455,-3889.325472,0.00018,2]
[401441866,1768221045694,-1.7e-07,0.00018,2]
[401441870,1768221046127,-151.0,0.00014524,2]
[401441871,1768221046137,-239.44755982,0.00015939,2]
[401441872,1768221046146,-16406.79324218,0.00018,2]
[401441873,1768221046158,-2617.51112008,0.00018,2]
[401441874,1768221046170,-4280.37655949,0.00018,2]
[401441875,1768221046185,-494.42802143,0.00018,2]
[401441876,1768221046197,-705.65580536,0.00018,2]
[401441877,1768221046208,-264.1780204,0.00018,2]
[401441878,1768221046220,-758.14934782,0.00018,2]
[401441883,1768221046439,-696.76538345,0.00015939,2]
[401441884,1768221046450,-234.69378485,0.0001701,2]
[401441885,1768221046460,-6562.88913825,0.00018,2]
[401441886,1768221046474,-3925.31734609,0.00018,2]
[401441887,1768221046493,-1244.08301737,0.00018,2]
[401441888,1768221046504,-640.10999993,0.00018,2]
[401441889,1768221046515,-2083.3,0.00018,2]
[401441890,1768221046539,-239.44755982,0.0001692,2]
[401441891,1768221046548,-10252.15244018,0.00018,2]
[401441892,1768221047298,1244.21357412,0.00012537,3]
[401441893,1768221056981,-1000.0,0.00011673,2]
[401441894,1768221057008,-2920.6191,0.00011673,2]
[401441895,1768221058398,279.99687724,0.00011772,2]
[401441896,1768221060555,1878.77492276,0.00011673,2]
[401441897,1768221081400,-418.73260776,0.00011673,2]
[401441898,1768221108870,-248.11986185,0.00011614,2]
[401441899,1768221110442,-236.43861474,0.00011614,2]
[401441900,1768221112466,-300.08343105,0.00011614,2]
[401441901,1768221113019,-170.66485964,0.00011614,2]
[401441902,1768221113058,-7499.90848072,0.00011614,2]
[401441903,1768221113204,-2158.7718,0.00011614,2]
[401441904,1768221116672,-250.0,0.00011673,2]
[401441905,1768221119952,-184.46511752,0.00011673,2]
[401441906,1768221121478,-182.35978323,0.00011673,2]
[401441907,1768221124894,-294.27108077,0.00011673,2]
[401441908,1768221126398,-203.39282246,0.00011673,2]
[401441909,1768221127657,5682.4664,7.945e-05,2]
[401441910,1768221127682,1813.545694,7.945e-05,2]
[401441911,1768221129762,-207.1827983,0.00011673,2]
[401441912,1768221132510,-378.62450157,0.00011673,2]
[401441913,1768221134402,-395.15780787,0.00011673,2]
[401441914,1768221138077,-277.104718,0.00011673,2]
[401441915,1768221140775,-374.66500799,0.00011673,2]
[401441916,1768221142461,-311.5501207,0.00011673,2]
[401441917,1768221144267,-275.7582736,0.00011673,2]
[401441918,1768221150161,-304.05069773,0.00011673,2]
[401441919,1768221152316,-300.98183784,0.00011673,2]
[401441920,1768221157878,-184.55796464,0.00011673,2]
[401441921,1768221159582,-192.71582831,0.00011673,2]
[401441922,1768221161730,-264.77940075,0.00011673,2]
[401441923,1768221161806,152.064975,0.00011614,2]
[401441924,1768221164233,-307.59393408,0.00011673,2]
[401441925,1768221166935,-450.30390765,0.00011673,2]
[401441926,1768221168662,-180.60937,0.00011673,2]
[401441927,1768221170100,-349.03312016,0.00011673,2]
[401441928,1768221173098,-235.66563197,0.00011673,2]
[401441929,1768221174537,-253.46353561,0.00011673,2]
[401441930,1768221177936,-220.24431258,0.00011673,2]
[401441931,1768221180727,-155.85892198,0.00011673,2]
[401441932,1768221182554,300.0,0.00011672,2]
[401441933,1768221182603,300.0,0.00011672,2]
[401441934,1768221182659,300.0,0.00011672,2]
[401441935,1768221182705,150.0,0.00011672,2]
[401441936,1768221182736,-578.3391022,0.00011673,2]
[401441937,1768221184627,156.07268442,0.00011672,2]
[401441938,1768221186195,-255.04792585,0.00011673,2]
[401441939,1768221188879,-343.46428555,0.00011673,2]
[401441940,1768221191929,-521.84831812,0.00011673,2]
[401441941,1768221193964,-241.02894289,0.00011673,2]
[401441942,1768221196003,1200.0,0.00011672,2]
[401441943,1768221197073,500.0,0.00011672,2]
[401441944,1768221197114,500.0,0.00011672,2]
[401441945,1768221197154,170.66582291,0.00011672,2]
[401441946,1768221197209,500.0,0.00011672,2]
[401441947,1768221197248,500.0,0.00011672,2]
[401441948,1768221197285,500.0,0.00011672,2]
[401441949,1768221197332,500.0,0.00011672,2]
[401441950,1768221197372,500.0,0.00011672,2]
[401441951,1768221197415,500.0,0.00011672,2]
[401441952,1768221197462,500.0,0.00011672,2]
[401441953,1768221197529,500.0,0.00011672,2]
[401441954,1768221197595,457.66082367,0.00011672,2]
[401441955,1768221197636,42.33917633,0.00011672,2]
[401441956,1768221197725,500.0,0.00011672,2]
[401441957,1768221197809,500.0,0.00011672,2]
[401441958,1768221197890,500.0,0.00011672,2]
[401441959,1768221200453,-200.10748678,0.00011673,2]
[401441960,1768221201881,-465.28404926,0.00011673,2]
[401441961,1768221204611,-340.26343159,0.00011673,2]
[401441962,1768221206268,-346.79869449,0.00011673,2]
[401441963,1768221208269,-261.36385949,0.00011673,2]